bitfinex-derivatives/quotes_BNBF0:USTF0_20250425
["timestamp","ask_amount","ask_price","bid_price","bid_amount"]
[1745546510644,0.28895255,603.58,601.61,0.30503847]
[1745546512139,1.26661249,603.59,601.61,0.30503847]
[1745546512343,0.28896454,603.57,601.61,0.30503847]
[1745546512842,1.26661249,603.47,601.61,0.30503847]
[1745546513647,1.26661249,603.47,601.6,1.283]
[1745546513843,1.26661249,603.47,601.61,0.30504036]
[1745546515149,1.26661249,603.46,601.61,0.30504036]
[1745546515448,1.55559143,603.46,601.61,0.30504036]
[1745546515848,1.55559143,603.46,601.62,1.363]
[1745546516049,1.55559143,603.46,601.63,0.30504036]
[1745546517050,1.26661249,603.37,601.63,0.30504036]
[1745546518345,0.28898854,603.36,601.63,0.30504036]
[1745546518544,0.28898854,603.36,601.64,0.30503595]
[1745546518745,0.28898854,603.36,601.63,0.30503595]
[1745546519051,1.26661249,603.33,601.63,0.30503595]
[1745546519451,1.26661249,603.33,601.64,1.46]
[1745546519647,1.26661249,603.33,601.65,0.30503595]
[1745546521353,2.15500042,603.31,601.65,0.30503595]
[1745546521559,1.26661249,603.2,601.65,0.30503595]
[1745546522663,1.26661249,603.2,601.64,1.46]
[1745546522864,1.26661249,603.2,601.65,0.30502121]
[1745546523864,1.26661249,603.18,601.65,0.30502121]
[1745546524065,1.26661249,603.18,601.63,0.30502121]
[1745546524364,1.26661249,603.18,601.64,0.30502121]
[1745546524664,0.28899934,603.17,601.65,0.30502121]
[1745546524864,0.28899934,603.17,601.66,0.30502121]
[1745546525070,0.28899934,603.17,601.67,0.30502121]
[1745546525260,0.28899934,603.17,601.63,0.30502121]
[1745546525465,0.28899934,603.17,601.64,0.30502121]
[1745546525665,0.28899934,603.17,601.63,0.30502121]
[1745546525965,0.28899934,603.17,601.64,0.30502257]
[1745546526163,0.28899934,603.17,601.63,0.30502257]
[1745546526361,0.28899934,603.17,601.64,0.30502257]
[1745546526562,0.28899934,603.17,601.6,0.30502257]
[1745546526869,0.28899934,603.17,601.61,0.30502257]
[1745546527066,0.28899934,603.17,601.6,0.30502257]
[1745546527373,0.28899934,603.17,601.59,1.05417052]
[1745546527564,0.28899934,603.17,601.6,0.30501983]
[1745546529065,0.28899934,603.17,601.61,1.05417052]
[1745546529266,0.28899934,603.17,601.62,0.30501983]
[1745546529768,0.28899934,603.17,601.63,1.306]
[1745546530067,1.26661249,603.23,601.64,0.30501983]
[1745546530468,0.28899214,603.22,601.64,0.30501983]
[1745546530768,0.28899214,603.22,601.65,2.62700565]
[1745546530969,0.28899214,603.22,601.66,0.30500565]
[1745546533170,1.26661249,603.48,601.66,0.30500565]
[1745546533465,0.28895974,603.21,601.66,0.30500565]
[1745546533668,1.26661249,603.48,601.65,2.322]
[1745546533869,1.26661249,603.49,601.65,2.322]
[1745546534168,1.26661249,603.49,601.66,0.30500602]
[1745546535167,1.26661249,603.49,601.65,2.322]
[1745546535371,0.28895855,603.48,601.65,2.322]
[1745546536067,1.26661249,603.49,601.65,2.322]
[1745546536373,0.28895855,603.47,601.65,2.322]
[1745546539074,1.26661249,603.63,601.65,2.322]
[1745546539275,0.28894415,603.46,601.65,2.322]
[1745546539574,1.26661249,603.58,601.65,2.322]
[1745546540574,0.28895015,603.57,601.65,2.322]
[1745546541076,1.26661249,603.56,601.65,2.322]
[1745546542374,0.28895255,603.55,601.65,2.322]
[1745546543375,0.28895255,603.55,601.66,0.3050025]
[1745546545171,1.26661249,603.64,601.66,0.3050025]
[1745546545376,0.28893096,603.54,601.66,0.3050025]
[1745546545675,1.26661249,603.64,601.66,0.3050025]
[1745546546172,1.26661249,603.64,601.67,0.30496946]
[1745546546476,0.28891656,603.63,601.68,0.30496946]
[1745546546671,0.28891656,603.63,601.66,0.30496946]
[1745546547071,1.26661249,603.52,601.66,0.30496946]
[1745546548375,0.28893096,603.51,601.66,0.30496946]
[1745546551081,1.26661249,603.57,601.66,0.30496946]
[1745546551281,0.28892496,603.5,601.66,0.30496946]
[1745546552380,0.28892496,603.5,601.67,0.304963]
[1745546552575,0.28892496,603.5,601.66,0.304963]
[1745546552774,0.28892496,603.5,601.67,0.304963]
[1745546552975,0.28892496,603.5,601.68,0.304963]
[1745546553178,0.28892496,603.5,601.69,0.304963]
[1745546553179,1.26661249,603.46,601.69,0.304963]
[1745546553782,1.26661249,603.46,601.68,1.05417052]
[1745546554078,1.26661249,603.46,601.69,0.30494448]
[1745546554381,0.28891536,603.45,601.69,0.30494448]
[1745546556483,0.28891536,603.45,601.7,0.30494448]
[1745546556683,0.28891536,603.45,601.71,0.30494448]
[1745546556884,0.28891536,603.45,601.72,0.30494448]
[1745546557079,0.28891536,603.45,601.73,0.30494448]
[1745546557279,0.28891536,603.45,601.66,0.30494448]
[1745546557479,0.28891536,603.45,601.67,0.30494448]
[1745546557682,0.28891536,603.45,601.66,0.30494448]
[1745546557881,0.28891536,603.45,601.67,0.30494448]
[1745546558081,0.28891536,603.45,601.68,0.30494448]
[1745546558281,0.28891536,603.45,601.69,0.30494448]
[1745546558682,0.28891536,603.45,601.7,0.30494448]
[1745546558881,0.28891536,603.45,601.71,0.30494448]
[1745546559079,0.28891536,603.45,601.72,0.30494448]
[1745546559284,0.28891536,603.45,601.73,0.30494448]
[1745546559483,0.28891536,603.45,601.74,0.30494448]
[1745546559687,0.28891536,603.45,601.66,0.30494448]
[1745546559885,0.28891536,603.45,601.67,0.30494448]
[1745546560084,0.28891536,603.45,601.66,0.30494448]
[1745546561487,0.28891536,603.45,601.65,0.991]
[1745546561687,0.28891536,603.45,601.66,0.30491408]
[1745546562982,0.28891536,603.45,601.65,0.991]
[1745546563185,1.26661249,603.77,601.66,0.30491462]
[1745546563689,1.26661249,603.86,601.66,0.30491462]
[1745546564688,0.28885661,603.85,601.66,0.30491462]
[1745546566083,1.26661249,603.86,601.67,0.30491462]
[1745546566288,0.2888638,603.84,601.61,0.2888638]
[1745546566487,0.2888638,603.84,601.62,0.30491462]
[1745546566785,0.2888638,603.84,601.67,1.05417052]
[1745546566786,1.26661249,603.7,601.67,1.05417052]
[1745546566982,1.26661249,603.7,601.68,0.30491462]
[1745546569186,1.26661249,603.7,601.67,1.05417052]
[1745546569393,1.26661249,603.7,601.61,0.2888638]
[1745546569394,0.2888638,603.84,601.68,0.30490787]
[1745546569590,0.2888638,603.84,601.69,0.30490787]
[1745546569790,0.2888638,603.84,601.7,0.30490787]
[1745546569986,0.2888638,603.84,601.71,0.30490787]
[1745546570190,0.2888638,603.84,601.72,0.30490787]
[1745546570393,0.2888638,603.84,601.62,0.30490787]
[1745546570587,0.2888638,603.84,601.63,0.30490787]
[1745546570892,0.2888638,603.84,601.64,0.30490787]
[1745546572087,1.26661249,604.07,601.64,0.30490787]
[1745546572586,0.28883383,603.83,601.64,0.30490787]
[1745546572792,1.26661249,604.07,601.64,0.30490787]
[1745546573188,1.26661249,604.07,601.65,1.028]
[1745546573491,1.26661249,604.07,601.66,0.30490787]
[1745546574192,0.28883144,604.06,601.65,2.328]
[1745546574395,1.26661249,604.04,601.66,0.30489466]
[1745546575390,0.28883503,604.03,601.66,0.30489466]
[1745546576800,1.26661249,604.01,601.66,0.30489466]
[1745546577291,1.26661249,604.01,601.67,0.30489409]
[1745546577494,1.26661249,604.01,601.68,0.30489409]
[1745546577695,1.26661249,604.01,601.69,0.30489409]
[1745546577996,1.26661249,604.01,601.7,0.30489409]
[1745546578191,1.26661249,604.01,601.66,0.30489409]
[1745546578495,0.28883863,604.0,601.67,0.30489409]
[1745546578794,0.28883863,604.0,601.68,0.30487618]
[1745546578995,0.28883863,604.0,601.66,0.30487618]
[1745546579294,0.28883863,604.0,601.65,3.509]
[1745546579295,1.26661249,603.84,601.67,0.30487618]
[1745546579495,1.26661249,603.84,601.66,0.30487618]
[1745546579693,1.26661249,603.84,601.67,0.30487618]
[1745546579890,1.26661249,603.84,601.66,0.30487618]
[1745546580092,1.26661249,603.84,601.67,0.30487618]
[1745546580290,1.26661249,603.84,601.68,0.30487618]
[1745546580495,1.26661249,603.84,601.66,0.30487618]
[1745546580793,1.26661249,603.84,601.67,0.30487618]
[1745546580994,1.26661249,603.84,601.68,0.30487618]
[1745546581196,1.26661249,603.84,601.69,0.30487618]
[1745546581390,1.26661249,603.84,601.7,0.30487618]
[1745546581590,1.26661249,603.84,601.71,0.30487618]
[1745546581789,1.26661249,603.84,601.72,0.30487618]
[1745546581993,1.26661249,603.84,601.73,0.30487618]
[1745546582295,1.26661249,603.79,601.76,1.05417052]
[1745546582492,1.26661249,603.79,601.77,0.30487618]
[1745546582689,1.26661249,603.79,601.76,1.05417052]
[1745546582894,1.26661249,603.79,601.77,0.30483394]
[1745546584196,1.26661249,603.79,601.84,1.05417052]
[1745546584393,1.26661249,603.76,601.85,0.30481985]
[1745546585796,1.26661249,603.76,601.84,1.05417052]
[1745546585997,1.26661249,603.76,601.85,0.30481046]
[1745546586599,0.28883863,604.0,601.85,0.30481046]
[1745546586799,0.28883863,604.0,601.76,0.30481046]
[1745546587194,0.28883863,604.0,601.77,1.357]
[1745546587499,0.28883863,604.0,601.78,0.30481055]
[1745546590206,1.26661249,604.09,601.78,0.30481055]
[1745546590400,0.28874277,603.99,601.78,0.30481055]
[1745546590701,1.26661249,604.09,601.78,0.30481055]
[1745546591601,0.28874277,604.08,601.78,0.30481055]
[1745546591798,0.28874277,604.08,601.79,0.30478628]
[1745546592001,0.28874277,604.08,601.8,0.30478628]
[1745546592202,0.28874277,604.08,601.77,1.357]
[1745546592203,0.28874277,604.08,601.81,0.30478628]
[1745546592396,0.28874277,604.08,601.78,0.30478628]
[1745546592601,0.28874277,604.08,601.79,0.30478628]
[1745546592801,0.28874277,604.08,601.78,0.30478628]
[1745546593003,0.28874277,604.08,601.79,0.30478628]
[1745546593201,1.26661249,604.13,601.8,0.30478628]
[1745546593401,1.26661249,604.13,601.81,0.30478628]
[1745546593601,0.28873797,604.07,601.78,0.30478628]
[1745546593801,0.28873797,604.07,601.79,0.30478628]
[1745546593999,0.28873797,604.07,601.78,0.30478628]
[1745546594201,0.28873797,604.07,601.79,0.30478628]
[1745546594398,0.28873797,604.07,601.78,0.30478628]
[1745546594903,0.28873797,604.07,601.79,0.30475494]
[1745546595101,0.28873797,604.07,601.78,0.30475494]
[1745546595302,0.28873797,604.07,601.79,0.30475494]
[1745546595499,0.28873797,604.07,601.78,0.30475494]
[1745546596099,1.26661249,604.22,601.78,0.30475494]
[1745546596405,0.28871282,604.06,601.78,0.30475494]
[1745546596603,0.28871282,604.06,601.78,1.28675494]
[1745546596805,1.26661249,604.22,601.78,1.973]
[1745546597200,1.26661249,604.22,601.82,1.05417052]
[1745546597400,1.26661249,604.3,601.82,1.05417052]
[1745546597605,0.28870683,604.21,601.82,1.05417052]
[1745546597800,1.26661249,604.3,601.82,1.05417052]
[1745546598103,0.28869725,604.2,601.82,1.05417052]
[1745546598402,1.26661249,604.3,601.82,1.05417052]
[1745546598610,0.28869725,604.19,601.82,1.05417052]
[1745546598911,1.26661249,604.3,601.83,0.30474892]
[1745546599207,1.26661249,604.29,601.83,0.30474892]
[1745546599407,1.55530974,604.29,601.82,0.30474892]
[1745546599608,1.55530974,604.29,601.83,0.30474892]
[1745546599805,1.55530974,604.29,601.84,0.3047411]
[1745546600008,1.55530974,604.29,601.85,0.3047411]
[1745546600308,1.55530974,604.29,601.86,0.3047411]
[1745546600505,1.55530974,604.29,601.82,0.3047411]
[1745546600711,1.55530974,604.29,601.83,0.3047411]
[1745546600907,1.55530974,604.29,601.82,0.3047411]
[1745546601104,1.55530974,604.29,601.83,0.3047411]
[1745546601307,1.55530974,604.29,601.81,1.34287017]
[1745546601308,0.28869725,604.29,601.82,0.3047411]
[1745546601508,0.28869725,604.29,601.83,0.3047411]
[1745546601714,0.28869725,604.29,601.82,0.3047411]
[1745546601913,0.28869725,604.29,601.83,0.3047411]
[1745546602114,1.26661249,604.4,601.82,0.3047411]
[1745546602313,1.26661249,604.4,601.8,0.3047411]
[1745546602509,0.28868648,604.28,601.82,0.28868648]
[1745546602714,1.26661249,604.4,601.83,0.3047411]
[1745546603910,1.26661249,604.42,601.83,0.3047411]
[1745546604511,0.28868288,604.41,601.83,0.3047411]
[1745546605216,1.26661249,604.42,601.83,0.3047411]
[1745546605412,0.28868288,604.4,601.82,0.28868288]
[1745546605613,0.28868288,604.4,601.83,0.3047411]
[1745546606320,1.26661249,604.34,601.83,1.35891162]
[1745546606512,1.26661249,604.34,601.84,0.3047411]
[1745546608518,0.28868887,604.33,601.84,0.3047411]
[1745546608819,1.26661249,604.32,601.86,1.05417052]
[1745546609019,1.26661249,604.32,601.87,0.3047411]
[1745546609815,1.26661249,604.32,601.88,0.3047411]
[1745546610015,1.26661249,604.32,601.89,0.3047411]
[1745546610215,1.26661249,604.32,601.9,0.3047411]
[1745546610419,1.26661249,604.32,601.91,0.3047411]
[1745546610620,1.26661249,604.32,601.92,0.3047411]
[1745546610820,1.26661249,604.32,601.93,0.3047411]
[1745546611021,1.26661249,604.32,601.94,0.3047411]
[1745546611321,1.26661249,604.32,601.95,0.3047411]
[1745546611522,0.28865535,604.31,601.96,0.3047411]
[1745546611821,0.28865535,604.31,601.97,0.3047411]
[1745546612021,0.28865535,604.31,601.98,0.3047411]
[1745546612222,0.28865535,604.31,602.01,1.05417052]
[1745546612522,0.28865535,604.31,602.02,1.3657411]
[1745546612718,0.28865535,604.31,602.03,0.3047411]
[1745546613415,0.28865535,604.31,602.04,0.30467625]
[1745546613619,0.28865535,604.31,602.03,0.30467625]
[1745546613817,0.28865535,604.31,602.04,0.30467625]
[1745546614024,0.28865535,604.31,602.03,0.30467625]
[1745546614322,1.26661249,604.33,602.04,0.30467625]
[1745546614524,0.28863859,604.3,602.03,0.30467625]
[1745546614720,0.28863859,604.3,602.04,0.30467625]
[1745546614917,0.28863859,604.3,602.05,0.30467545]
[1745546615123,0.28863859,604.3,602.03,0.30467545]
[1745546615316,1.26661249,604.28,602.04,1.35884597]
[1745546615518,1.26661249,604.28,602.05,0.30467545]
[1745546615915,1.26661249,604.28,602.06,0.30467545]
[1745546616119,1.26661249,604.28,602.07,0.30467545]
[1745546616316,1.26661249,604.28,602.04,1.05417052]
[1745546616518,1.26661249,604.28,602.05,0.30466162]
[1745546616822,1.26661249,604.28,602.06,0.30466162]
[1745546617020,1.26661249,604.28,602.07,0.30466162]
[1745546617220,1.26661249,604.28,602.08,0.30466162]
[1745546617420,0.28862303,604.27,602.09,0.30466162]
[1745546617625,1.26661249,604.19,602.13,1.05417052]
[1745546617922,1.26661249,604.19,602.14,0.30465639]
[1745546620120,1.26661249,604.26,602.14,0.30465639]
[1745546620819,0.28862662,604.25,602.15,0.30466225]
[1745546621018,0.28862662,604.25,602.14,0.30466225]
[1745546621218,0.28862662,604.25,602.15,0.30466225]
[1745546621422,0.28862662,604.25,602.16,0.30466225]
[1745546621623,0.28862662,604.25,602.14,0.30466225]
[1745546621819,0.28862662,604.25,602.15,0.30466225]
[1745546622024,0.28862662,604.25,602.14,0.30466225]
[1745546622223,0.28862662,604.25,602.15,0.30466225]
[1745546622427,0.28862662,604.25,602.16,0.30466225]
[1745546622623,0.28862662,604.25,602.17,0.30466225]
[1745546622823,0.28862662,604.25,602.16,1.463]
[1745546623020,0.28862662,604.25,602.17,0.30466225]
[1745546623323,1.26661249,604.26,602.17,0.30466225]
[1745546623620,0.28862303,604.24,602.17,0.30466225]
[1745546623820,0.28862303,604.24,602.18,0.30466843]
[1745546625222,0.28862303,604.24,602.17,1.387]
[1745546625526,0.28862303,604.24,602.18,0.30466579]
[1745546625928,1.26661249,604.19,602.18,1.35883631]
[1745546626126,1.26661249,604.19,602.19,0.30466579]
[1745546626724,1.26661249,604.19,602.18,1.05417052]
[1745546627029,1.26661249,604.19,602.19,0.30466644]
[1745546628029,1.55523552,604.24,602.19,0.30466644]
[1745546628327,1.55523552,604.24,602.2,0.30466996]
[1745546628527,1.55523552,604.24,602.21,0.30466996]
[1745546628728,1.55523552,604.24,602.18,0.30466996]
[1745546629029,1.55523552,604.24,602.19,0.30466996]
[1745546629327,1.26661249,604.24,602.2,0.30466996]
[1745546629533,0.28865295,604.23,602.21,0.30466996]
[1745546630133,0.28865295,604.23,602.22,0.30470822]
[1745546630322,0.28865295,604.23,602.23,0.30470822]
[1745546630524,0.28865295,604.23,602.21,0.30470822]
[1745546632131,1.26661249,604.4,602.21,0.30470822]
[1745546632430,0.28863021,604.22,602.21,0.30470822]
[1745546632631,0.28863021,604.22,602.2,1.457]
[1745546632826,1.26661249,604.4,602.21,0.30470377]
[1745546633531,0.28863021,604.39,602.21,0.30470377]
[1745546634029,1.26661249,604.35,602.21,0.30470377]
[1745546635529,1.26661249,604.35,602.2,1.457]
[1745546635733,1.26661249,604.35,602.21,0.30471199]
[1745546635734,0.28863619,604.34,602.21,0.30471199]
[1745546637131,1.55524868,604.34,602.22,0.30471199]
[1745546637334,1.55524868,604.34,602.06,0.28863619]
[1745546637534,1.55524868,604.34,602.07,0.3047113]
[1745546638135,1.26661249,604.34,602.07,0.3047113]
[1745546638335,1.26661249,604.34,601.98,0.3047113]
[1745546638535,1.26661249,604.34,602.06,0.28866492]
[1745546638835,1.26661249,604.34,602.07,0.30471158]
[1745546639034,1.26661249,604.34,602.06,0.28866492]
[1745546639233,1.26661249,604.34,602.07,0.30471158]
[1745546639836,1.26661249,604.34,602.08,0.947]
[1745546640031,1.26661249,604.34,602.09,0.30471158]
[1745546640737,0.28865176,604.33,602.09,0.30471158]
[1745546641134,1.26661249,604.34,602.08,0.947]
[1745546641333,1.26661249,604.34,602.09,0.30470279]
[1745546641532,0.28865176,604.33,602.09,0.30470279]
[1745546642038,1.26661249,604.0,602.15,1.05417052]
[1745546642232,1.26661249,604.0,602.16,0.30470279]
[1745546643439,1.26661249,604.0,602.16,1.43170279]
[1745546643639,1.26661249,604.0,602.17,0.30470279]
[1745546644140,1.26661249,603.91,602.17,0.30470279]
[1745546646442,1.26661249,603.93,602.17,0.30470279]
[1745546647143,1.26661249,603.93,602.18,0.30469405]
[1745546647336,1.26661249,603.93,602.17,0.30469405]
[1745546647537,1.26661249,603.93,602.18,0.30469405]
[1745546647538,0.2886769,603.92,602.18,0.30469405]
[1745546647740,0.2886769,603.92,602.19,0.30469405]
[1745546647937,0.2886769,603.92,602.2,0.30469405]
[1745546648241,0.2886769,603.92,602.21,0.30469405]
[1745546648442,0.2886769,603.92,602.22,0.30469405]
[1745546648638,0.2886769,603.92,602.23,0.30469555]
[1745546648942,0.2886769,603.92,602.24,0.30469555]
[1745546649143,1.26661249,603.91,602.25,0.30469555]
[1745546649339,1.26661249,603.91,602.17,0.30469555]
[1745546649540,1.26661249,603.91,602.18,0.30469555]
[1745546649742,1.26661249,603.91,602.17,0.30469555]
[1745546649941,1.26661249,603.91,602.18,0.30469555]
[1745546650140,1.26661249,603.91,602.17,0.30469555]
[1745546650338,1.26661249,603.91,602.18,0.30469555]
[1745546650537,1.26661249,603.91,602.17,0.30469555]
[1745546650737,1.26661249,603.91,602.18,0.30469555]
[1745546650943,1.26661249,603.91,602.17,0.30469555]
[1745546651144,1.26661249,603.91,602.18,0.30469555]
[1745546651345,1.26661249,603.91,602.19,0.30469555]
[1745546651547,1.26661249,603.91,602.2,0.30469555]
[1745546651745,1.26661249,603.91,602.21,0.30469555]
[1745546651947,0.2886769,603.92,602.22,0.30469555]
[1745546652242,0.2886769,603.92,602.23,0.30469555]
[1745546652444,0.2886769,603.92,602.17,0.30469555]
[1745546652647,0.2886769,603.92,602.18,0.30469555]
[1745546652846,0.2886769,603.92,602.19,0.30469555]
[1745546653045,0.2886769,603.92,602.2,0.30469555]
[1745546653246,1.26661249,604.35,602.21,0.30469555]
[1745546653442,0.28861226,603.91,602.17,0.30469555]
[1745546653644,0.28861226,603.91,602.18,0.30469555]
[1745546653847,1.26661249,604.35,602.17,0.30469555]
[1745546654049,1.26661249,604.35,602.18,0.30469555]
[1745546654247,1.26661249,604.35,602.17,0.30469555]
[1745546654448,1.26661249,604.4,602.18,0.30469555]
[1745546654644,1.26661249,604.4,602.17,0.30469555]
[1745546655448,0.28860627,604.39,602.17,0.30469555]
[1745546656153,1.26661249,604.4,602.17,0.30469555]
[1745546656553,0.28860627,604.39,602.17,0.30469555]
[1745546657653,0.28860627,604.39,602.16,1.127]
[1745546657855,0.28860627,604.39,602.17,0.30466751]
[1745546659855,1.26661249,604.36,602.17,0.30466751]
[1745546662357,1.26661249,604.2,602.19,1.05417052]
[1745546662556,1.26661249,604.2,602.2,0.30466751]
[1745546665061,2.15500042,604.19,602.2,0.30466751]
[1745546665257,1.26661249,604.06,602.2,0.30466751]
[1745546666662,1.26661249,604.06,602.19,1.05417052]
[1745546666856,1.26661249,604.05,602.2,0.30468686]
[1745546667055,1.26661249,604.05,602.17,0.30468686]
[1745546667257,1.26661249,604.05,602.18,0.30468686]
[1745546667464,1.26661249,604.05,602.19,0.30468686]
[1745546667663,1.26661249,604.05,602.2,0.30468686]
[1745546667863,1.26661249,604.05,602.17,0.30468686]
[1745546668069,1.26661249,604.05,602.18,0.30468686]
[1745546668263,1.26661249,604.05,602.19,0.30468686]
[1745546668466,1.26661249,604.05,602.17,0.30468686]
[1745546668666,0.28866253,604.04,602.18,0.30468686]
[1745546668965,0.28866253,604.04,602.16,1.127]
[1745546668966,0.28866253,604.04,602.19,0.30468686]
[1745546669268,0.28866253,604.04,602.2,0.30468686]
[1745546669461,0.28866253,604.04,602.17,0.30468686]
[1745546669662,0.28866253,604.04,602.18,0.30468686]
[1745546669867,0.28866253,604.04,602.19,0.30469045]
[1745546670064,0.28866253,604.04,602.17,0.30469045]
[1745546670267,0.28866253,604.04,602.18,0.30469045]
[1745546670467,0.28866253,604.04,602.17,0.30469045]
[1745546670663,0.28866253,604.04,602.18,0.30469045]
[1745546670967,0.28866253,604.04,602.19,0.30469045]
[1745546671169,1.26661249,604.15,602.17,0.30469045]
[1745546671369,1.26661249,604.15,602.18,0.30469202]
[1745546671567,0.28865056,604.14,602.17,0.30469202]
[1745546671771,0.28865056,604.14,602.18,0.30469202]
[1745546671971,0.28865056,604.14,602.17,0.30469202]
[1745546672165,0.28865056,604.14,602.16,1.127]
[1745546672166,0.28865056,604.14,602.18,0.30469202]
[1745546672666,0.28865056,604.14,602.19,0.30469202]
[1745546672868,0.28865056,604.14,602.2,0.30469202]
[1745546673070,0.28865056,604.14,602.21,0.30469202]
[1745546673268,0.28865056,604.14,602.17,0.30469202]
[1745546673468,0.28865056,604.14,602.18,0.30469202]
[1745546673771,0.28865056,604.14,602.19,0.30469202]
[1745546673971,0.28865056,604.14,602.2,0.30469202]
[1745546674171,1.26661249,604.19,602.21,0.30469202]
[1745546674372,1.26661249,604.19,602.17,0.30469202]
[1745546674568,0.28864577,604.18,602.18,0.30469202]
[1745546674775,0.28864577,604.18,602.17,0.30469202]
[1745546674974,0.28864577,604.18,602.18,0.30469202]
[1745546675175,0.28864577,604.18,602.17,0.30469202]
[1745546675476,1.55525826,604.18,602.18,0.30469202]
[1745546675675,1.55525826,604.18,602.17,0.30469202]
[1745546675869,1.55525826,604.18,602.18,0.30469255]
[1745546676069,1.55525826,604.18,602.17,0.30469255]
[1745546677175,1.26661249,604.18,602.17,0.30469255]
[1745546677570,0.28864697,604.17,602.17,0.30469255]
[1745546678871,0.28864697,604.17,602.18,0.30469024]
[1745546679073,0.28864697,604.17,602.17,0.30469024]
[1745546680272,1.26661249,604.09,602.18,1.05417052]
[1745546680473,1.26661249,604.09,602.19,0.30469024]
[1745546682487,1.26661249,604.09,602.19,1.35886076]
[1745546682677,1.26661249,604.09,602.2,0.30469024]
[1745546683277,1.26661249,604.09,602.19,1.05417052]
[1745546683478,1.26661249,604.09,602.2,0.30468999]
[1745546683777,0.28865415,604.08,602.2,0.30468999]
[1745546684375,0.28865415,604.08,602.17,0.30468999]
[1745546684579,0.28865415,604.08,602.18,0.30468999]
[1745546684877,0.28865415,604.08,602.19,0.30468774]
[1745546685079,0.28865415,604.08,602.2,0.30468774]
[1745546685279,0.28865415,604.08,602.17,0.30468774]
[1745546685481,0.28865415,604.08,602.18,0.30468774]
[1745546685680,0.28865415,604.08,602.19,0.30468774]
[1745546685880,0.28865415,604.08,602.2,0.30468774]
[1745546686182,1.26661249,604.17,602.21,0.30468774]
[1745546686381,1.26661249,604.17,602.22,0.30468759]
[1745546686581,0.28864936,604.07,602.23,0.30468759]
[1745546686777,1.26661249,604.17,602.17,0.30468759]
[1745546686986,1.26661249,604.17,602.18,0.30468759]
[1745546687188,1.26661249,604.17,602.19,0.30468759]
[1745546687487,1.26661249,604.17,602.2,0.30468759]
[1745546687682,0.2886338,604.16,602.17,0.30468759]
[1745546687884,0.2886338,604.16,602.18,0.30468759]
[1745546688081,0.2886338,604.16,602.17,0.30468759]
[1745546688383,0.2886338,604.16,602.18,0.30468759]
[1745546688576,0.2886338,604.16,602.19,0.30468759]
[1745546688779,1.26661249,604.14,602.2,1.05417052]
[1745546689084,1.26661249,604.14,602.21,0.30468759]
[1745546689288,1.26661249,604.14,602.2,1.05417052]
[1745546689486,1.26661249,604.14,602.21,0.30468089]
[1745546689687,0.2886326,604.13,602.21,0.30468089]
[1745546692088,0.2886326,604.13,602.21,1.35885141]
[1745546692282,1.26661249,604.14,602.22,0.30469302]
[1745546692684,0.28864577,604.12,602.22,0.30469302]
[1745546693690,0.28864577,604.12,602.21,1.05417052]
[1745546693890,0.28864577,604.12,602.22,0.30469276]
[1745546694892,1.26661249,604.11,602.22,0.30469276]
[1745546695187,1.26661249,604.11,602.23,0.30469276]
[1745546695486,1.26661249,604.11,602.24,0.30469293]
[1745546695691,0.28865176,604.1,602.25,0.30469293]
[1745546695893,0.28865176,604.1,602.26,0.30469293]
[1745546696092,0.28865176,604.1,602.27,0.30469293]
[1745546696296,0.28865176,604.1,602.28,0.30469293]
[1745546696496,0.28865176,604.1,602.2,0.30469293]
[1745546696794,0.28865176,604.1,602.19,1.05417052]
[1745546696993,0.28865176,604.1,602.2,0.30469211]
[1745546697696,1.26661249,603.99,602.26,1.05417052]
[1745546697994,1.26661249,603.99,602.27,0.30469211]
[1745546698495,0.28865774,603.98,602.27,0.30469211]
[1745546699795,0.28865774,603.98,602.26,1.05417052]
[1745546699994,1.55527023,603.98,602.27,1.35887004]
[1745546700194,1.55527023,603.98,602.28,0.30469952]
[1745546700996,1.55527023,603.98,602.27,1.05417052]
[1745546701295,1.26661249,603.98,602.28,0.3047033]
[1745546701795,0.28867929,603.97,602.28,0.3047033]
[1745546702195,0.28867929,603.97,602.27,1.05417052]
[1745546702395,1.26661249,603.95,602.23,1.05417052]
[1745546704500,0.28870204,603.94,602.23,1.05417052]
[1745546705501,0.28870204,603.94,601.97,0.28870204]
[1745546705699,0.28870204,603.94,601.98,0.30476939]
[1745546706194,0.28870204,603.94,601.97,1.57370204]
[1745546706401,0.28870204,603.94,601.98,0.3047649]
[1745546707200,1.26661249,604.1,601.98,0.3047649]
[1745546707497,0.28871522,603.93,601.98,0.3047649]
[1745546707698,1.26661249,604.1,601.98,0.3047649]
[1745546708199,1.26661249,604.17,601.98,0.3047649]
[1745546708405,1.26661249,604.17,601.99,0.3047676]
[1745546708599,1.26661249,604.17,601.98,0.3047676]
[1745546708803,1.26661249,604.17,601.99,0.3047676]
[1745546709004,1.26661249,604.17,601.98,0.3047676]
[1745546709207,1.26661249,604.17,601.99,0.3047676]
[1745546709403,1.26661249,604.17,602.0,0.3047676]
[1745546709602,1.26661249,604.17,601.97,1.57371522]
[1745546709603,0.28870683,604.16,601.98,0.3047676]
[1745546709803,0.28870683,604.16,601.97,1.57371522]
[1745546710005,0.28870683,604.16,601.98,0.30477274]